fUSD/lending_fUSD_20250828
["ID","MTS","AMOUNT","RATE_DAILY","PERIOD"]
[381829446,1756361444937,-400.0,0.00018719,2]
[381829447,1756361444946,-400.0,0.00018719,2]
[381829448,1756361444955,-400.0,0.00018719,2]
[381829449,1756361444964,-458.34,0.00018719,2]
[381829450,1756361444973,-386.62,0.00018719,2]
[381829451,1756361444984,-329.82,0.00018719,2]
[381829452,1756361444999,-529.15,0.00018719,2]
[381829453,1756361445012,-400.0,0.00018719,2]
[381829454,1756361445023,-400.0,0.00018719,2]
[381829455,1756361445032,-446.72,0.00018719,2]
[381829456,1756361445041,-643.51,0.00018719,2]
[381829457,1756361445050,-1878.44,0.00018719,2]
[381829458,1756361445059,-526.0,0.00018719,2]
[381829459,1756361445068,-394.19,0.00018719,2]
[381829460,1756361445078,-400.0,0.00018719,2]
[381829461,1756361445088,-302.6,0.00018719,2]
[381829462,1756361445097,-326.16,0.00018719,2]
[381829463,1756361445106,-458.76,0.00018719,2]
[381829464,1756361445115,-400.0,0.00018719,2]
[381829465,1756361445125,-430.75,0.00018719,2]
[381829466,1756361445134,-400.0,0.00018719,2]
[381829467,1756361445144,-1799.22,0.00018719,2]
[381829468,1756361445154,-940.7,0.00018719,2]
[381829469,1756361445163,-400.0,0.00018719,2]
[381829470,1756361445172,-152.47127213,0.00018721,2]
[381829471,1756361445182,-502.700519,0.00018721,2]
[381829472,1756361445191,-1000.0,0.00018721,2]
[381829473,1756361445201,-504.05429217,0.00018721,2]
[381829474,1756361445210,-500.0,0.00018733,2]
[381829475,1756361445221,-500.0,0.00018757,2]
[381829476,1756361445230,-500.0,0.00018773,2]
[381829477,1756361445240,-500.0,0.00018773,2]
[381829478,1756361445249,-500.0,0.00018773,2]
[381829479,1756361445258,-500.0,0.00018785,2]
[381829480,1756361445268,-769.51,0.00018817,2]
[381829481,1756361445277,-382.6,0.00018818,2]
[381829482,1756361445286,-382.54,0.00018818,2]
[381829483,1756361445296,-400.0,0.00018818,2]
[381829484,1756361445305,-400.0,0.00018818,2]
[381829485,1756361445314,-326.88,0.00018818,2]
[381829486,1756361445323,-282.76,0.00018818,2]
[381829487,1756361445333,-400.0,0.00018818,2]
[381829488,1756361445342,-326.95,0.00018818,2]
[381829489,1756361445351,-470.91,0.00018818,2]
[381829490,1756361445360,-400.0,0.00018818,2]
[381829491,1756361445369,-358.77,0.00018818,2]
[381829492,1756361445378,-400.0,0.00018818,2]
[381829493,1756361445388,-482.84,0.00018818,2]
[381829495,1756361445397,-400.0,0.00018818,2]
[381829497,1756361445407,-215.96,0.00018818,2]
[381829498,1756361445416,-316.62,0.00018818,2]
[381829499,1756361445426,-449.74,0.00018818,2]
[381829500,1756361445435,-400.0,0.00018818,2]
[381829501,1756361445444,-400.0,0.00018818,2]
[381829502,1756361445453,-400.0,0.00018818,2]
[381829503,1756361445462,-400.0,0.00018818,2]
[381829504,1756361445472,-721.86,0.00018818,2]
[381829505,1756361445482,-374.74761496,0.00018891,2]
[381829506,1756361445491,-500.0,0.00018973,2]
[381829507,1756361445501,-500.0,0.00018973,2]
[381829508,1756361445510,-500.0,0.00018973,2]
[381829509,1756361445521,-400.0,0.00018991,2]
[381829510,1756361445530,-400.0,0.00018991,2]
[381829511,1756361445539,-400.0,0.00018991,2]
[381829512,1756361445549,-400.0,0.00018991,2]
[381829513,1756361445558,-190.0,0.00018991,2]
[381829514,1756361445568,-400.0,0.00018991,2]
[381829515,1756361445577,-400.0,0.00018991,2]
[381829516,1756361445587,-400.0,0.00018991,2]
[381829517,1756361445596,-400.0,0.00018991,2]
[381829518,1756361445605,-400.0,0.00018991,2]
[381829519,1756361445615,-400.0,0.00018991,2]
[381829520,1756361445625,-400.0,0.00018991,2]
[381829521,1756361445636,-400.0,0.00018991,2]
[381829522,1756361445650,-400.0,0.00018991,2]
[381829523,1756361445660,-400.0,0.00018991,2]
[381829524,1756361445669,-400.0,0.00018991,2]
[381829525,1756361445678,-400.0,0.00018991,2]
[381829526,1756361445688,-400.0,0.00018991,2]
[381829527,1756361445697,-400.0,0.00018991,2]
[381829528,1756361445707,-400.0,0.00018991,2]
[381829529,1756361445717,-430.0,0.00018991,2]
[381829530,1756361445728,-400.0,0.00018991,2]
[381829531,1756361445740,-400.0,0.00018991,2]
[381829532,1756361445749,-400.0,0.00018991,2]
[381829533,1756361445759,-400.0,0.00018991,2]
[381829534,1756361445768,-310.54,0.00018991,2]
[381829535,1756361445777,-400.0,0.00018991,2]
[381829536,1756361445787,-505.92,0.00018991,2]
[381829537,1756361445796,-400.0,0.00018991,2]
[381829538,1756361445805,-400.0,0.00018991,2]
[381829539,1756361445814,-400.0,0.00018991,2]
[381829540,1756361445823,-391.57580626,0.00018991,2]
[381829541,1756361445833,-400.0,0.00018991,2]
[381829542,1756361445842,-400.0,0.00018991,2]
[381829543,1756361445851,-400.0,0.00018991,2]
[381829544,1756361445862,-400.0,0.00018991,2]
[381829545,1756361445876,-453.91,0.00018991,2]
[381829546,1756361445888,-400.0,0.00018991,2]
[381829547,1756361445899,-400.0,0.00018991,2]
[381829548,1756361445908,-400.0,0.00018991,2]
[381829549,1756361445918,-400.0,0.00018991,2]
[381829550,1756361445927,-400.0,0.00018991,2]
[381829551,1756361445941,-400.0,0.00018991,2]
[381829552,1756361445950,-400.0,0.00018991,2]
[381829553,1756361445960,-209.02,0.00018991,2]
[381829554,1756361445969,-400.0,0.00018991,2]
[381829555,1756361445981,-485.57,0.00018991,2]
[381829556,1756361445991,-229.88,0.00018991,2]
[381829557,1756361446000,-400.0,0.00018991,2]
[381829558,1756361446012,-522.96,0.00018991,2]
[381829559,1756361446023,-400.0,0.00018991,2]
[381829560,1756361446032,-400.0,0.00018991,2]
[381829561,1756361446042,-417.09,0.00018991,2]
[381829562,1756361446052,-400.0,0.00018991,2]
[381829563,1756361446061,-401.31,0.00018991,2]
[381829564,1756361446072,-400.0,0.00018991,2]
[381829565,1756361446081,-436.49,0.00018991,2]
[381829566,1756361446091,-400.0,0.00018991,2]
[381829567,1756361446102,-400.0,0.00018991,2]
[381829568,1756361446112,-400.0,0.00018991,2]
[381829569,1756361446122,-400.0,0.00018991,2]
[381829570,1756361446131,-400.0,0.00018991,2]
[381829571,1756361446141,-400.0,0.00018991,2]
[381829572,1756361446150,-400.0,0.00018991,2]
[381829573,1756361446159,-400.0,0.00018991,2]
[381829574,1756361446168,-400.0,0.00018991,2]
[381829575,1756361446178,-400.0,0.00018991,2]
[381829576,1756361446187,-400.0,0.00018991,2]
[381829577,1756361446197,-400.0,0.00018991,2]
[381829578,1756361446206,-400.0,0.00018991,2]
[381829579,1756361446216,-400.0,0.00018991,2]
[381829580,1756361446225,-400.0,0.00018991,2]
[381829581,1756361446235,-400.0,0.00018991,2]
[381829582,1756361446244,-479.97,0.00018991,2]
[381829583,1756361446254,-400.0,0.00018991,2]
[381829584,1756361446263,-491.59,0.00018991,2]
[381829585,1756361446273,-400.0,0.00018991,2]
[381829586,1756361446282,-400.0,0.00018991,2]
[381829587,1756361446292,-400.0,0.00018991,2]
[381829588,1756361446301,-400.0,0.00018991,2]
[381829589,1756361446311,-349.61,0.00018991,2]
[381829590,1756361446321,-400.0,0.00018991,2]
[381829591,1756361446330,-450.2,0.00018991,2]
[381829592,1756361446339,-400.0,0.00018991,2]
[381829593,1756361446349,-400.0,0.00018991,2]
[381829594,1756361446358,-400.0,0.00018991,2]
[381829595,1756361446368,-400.0,0.00018991,2]
[381829596,1756361446377,-468.33,0.00018991,2]
[381829597,1756361446386,-400.0,0.00018991,2]
[381829598,1756361446396,-400.0,0.00018991,2]
[381829599,1756361446405,-400.0,0.00018991,2]
[381829600,1756361446414,-400.0,0.00018991,2]
[381829601,1756361446424,-400.0,0.00018991,2]
[381829602,1756361446434,-400.0,0.00018991,2]
[381829603,1756361446443,-400.0,0.00018991,2]
[381829604,1756361446452,-400.0,0.00018991,2]
[381829605,1756361446462,-400.0,0.00018991,2]
[381829606,1756361446471,-400.0,0.00018991,2]
[381829607,1756361446480,-400.0,0.00018991,2]
[381829608,1756361446489,-400.0,0.00018991,2]
[381829609,1756361446498,-400.0,0.00018991,2]
[381829610,1756361446508,-400.0,0.00018991,2]
[381829611,1756361446519,-400.0,0.00018991,2]
[381829612,1756361446528,-400.0,0.00018991,2]
[381829613,1756361446538,-400.0,0.00018991,2]
[381829614,1756361446547,-400.0,0.00018991,2]
[381829615,1756361446557,-400.0,0.00018991,2]
[381829616,1756361446566,-250.0,0.00018991,2]
[381829617,1756361446576,-465.3,0.00018991,2]
[381829618,1756361446585,-400.0,0.00018991,2]
[381829619,1756361446594,-400.0,0.00018991,2]
[381829620,1756361446604,-540.95,0.00018991,2]
[381829621,1756361446613,-400.0,0.00018991,2]
[381829622,1756361446622,-466.19,0.00018991,2]
[381829623,1756361446631,-400.0,0.00018991,2]
[381829624,1756361446640,-400.0,0.00018991,2]
[381829625,1756361446650,-400.0,0.00018991,2]
[381829626,1756361446659,-400.0,0.00018991,2]
[381829627,1756361446668,-400.0,0.00018991,2]
[381829628,1756361446678,-506.66,0.00018991,2]
[381829629,1756361446687,-400.0,0.00018991,2]
[381829630,1756361446696,-483.6,0.00018991,2]
[381829631,1756361446706,-531.81,0.00018991,2]
[381829632,1756361446715,-400.0,0.00018991,2]
[381829633,1756361446724,-468.63,0.00018991,2]
[381829634,1756361446734,-536.12,0.00018991,2]
[381829635,1756361446743,-400.0,0.00018991,2]
[381829636,1756361446754,-400.0,0.00018991,2]
[381829637,1756361446765,-400.0,0.00018991,2]
[381829638,1756361446776,-400.0,0.00018991,2]
[381829639,1756361446785,-248.93,0.00018991,2]
[381829640,1756361446795,-400.0,0.00018991,2]
[381829641,1756361446807,-400.0,0.00018991,2]
[381829642,1756361446816,-457.65,0.00018991,2]
[381829643,1756361446826,-400.0,0.00018991,2]
[381829644,1756361446835,-400.0,0.00018991,2]
[381829645,1756361446847,-429.83,0.00018991,2]
[381829646,1756361446856,-400.0,0.00018991,2]
[381829647,1756361446868,-400.0,0.00018991,2]
[381829648,1756361446879,-400.0,0.00018991,2]
[381829649,1756361446888,-400.0,0.00018991,2]
[381829650,1756361446897,-400.0,0.00018991,2]
[381829651,1756361446906,-400.0,0.00018991,2]
[381829652,1756361446916,-276.36,0.00018991,2]
[381829653,1756361446925,-400.0,0.00018991,2]
[381829654,1756361446939,-298.12,0.00018991,2]
[381829655,1756361446949,-400.0,0.00018991,2]
[381829656,1756361446958,-1086.63,0.00018991,2]
[381829657,1756361446967,-400.0,0.00018991,2]
[381829658,1756361446978,-400.0,0.00018991,2]
[381829659,1756361447006,-400.0,0.00018991,2]
[381829660,1756361447017,-400.0,0.00018991,2]
[381829661,1756361447027,-400.0,0.00018991,2]
[381829662,1756361447036,-400.0,0.00018991,2]
[381829663,1756361447045,-400.0,0.00018991,2]
[381829664,1756361447055,-400.0,0.00018991,2]
[381829665,1756361447065,-243.04,0.00018991,2]
[381829666,1756361447074,-400.73,0.00018991,2]
[381829667,1756361447084,-400.0,0.00018991,2]
[381829668,1756361447093,-400.0,0.00018991,2]
[381829669,1756361447103,-237.2,0.00018991,2]
[381829670,1756361447113,-400.0,0.00018991,2]
[381829671,1756361447122,-400.0,0.00018991,2]
[381829672,1756361447131,-400.0,0.00018991,2]
[381829673,1756361447140,-410.97,0.00018991,2]
[381829674,1756361447150,-400.0,0.00018991,2]
[381829675,1756361447160,-541.14,0.00018991,2]
[381829676,1756361447168,-400.0,0.00018991,2]
[381829677,1756361447178,-400.0,0.00018991,2]
[381829678,1756361447187,-400.0,0.00018991,2]
[381829679,1756361447197,-400.0,0.00018991,2]
[381829680,1756361447206,-183.16,0.00018991,2]
[381829681,1756361447216,-400.0,0.00018991,2]
[381829682,1756361447226,-400.0,0.00018991,2]
[381829683,1756361447235,-400.0,0.00018991,2]
[381829684,1756361447244,-400.0,0.00018991,2]
[381829685,1756361447254,-400.0,0.00018991,2]
[381829686,1756361447263,-400.0,0.00018991,2]
[381829687,1756361447273,-400.0,0.00018991,2]
[381829688,1756361447282,-425.23,0.00018991,2]
[381829689,1756361447291,-226.82157158,0.00018991,2]
[381829690,1756361447300,-400.0,0.00018991,2]
[381829691,1756361447310,-400.0,0.00018991,2]
[381829692,1756361447319,-400.0,0.00018991,2]
[381829693,1756361447328,-400.0,0.00018991,2]
[381829694,1756361447338,-400.0,0.00018991,2]
[381829695,1756361447347,-400.0,0.00018991,2]
[381829696,1756361447357,-488.64,0.00018991,2]
[381829697,1756361447366,-400.0,0.00018991,2]
[381829698,1756361447375,-465.57,0.00018991,2]
[381829699,1756361447384,-400.0,0.00018991,2]
[381829700,1756361447393,-400.0,0.00018991,2]
[381829701,1756361447403,-400.0,0.00018991,2]
[381829702,1756361447412,-400.0,0.00018991,2]
[381829703,1756361447421,-400.0,0.00018991,2]
[381829704,1756361447430,-392.36,0.00018991,2]
[381829705,1756361447440,-400.0,0.00018991,2]
[381829706,1756361447449,-465.5,0.00018991,2]
[381829707,1756361447458,-400.0,0.00018991,2]
[381829708,1756361447468,-400.0,0.00018991,2]
[381829709,1756361447477,-400.0,0.00018991,2]
[381829710,1756361447487,-400.0,0.00018991,2]
[381829711,1756361447496,-460.16,0.00018991,2]
[381829712,1756361447506,-400.0,0.00018991,2]
[381829713,1756361447515,-400.0,0.00018991,2]
[381829714,1756361447524,-403.09,0.00018991,2]
[381829715,1756361447534,-400.0,0.00018991,2]
[381829716,1756361447543,-400.0,0.00018991,2]
[381829717,1756361447553,-400.0,0.00018991,2]
[381829718,1756361447563,-400.0,0.00018991,2]
[381829719,1756361447573,-400.0,0.00018991,2]
[381829720,1756361447582,-400.0,0.00018991,2]
[381829721,1756361447591,-400.0,0.00018991,2]
[381829722,1756361447601,-397.60053884,0.00018991,2]
[381829723,1756361447610,-400.0,0.00018991,2]
[381829724,1756361447620,-400.0,0.00018991,2]
[381829725,1756361447629,-400.0,0.00018991,2]
[381829726,1756361447638,-400.0,0.00018991,2]
[381829727,1756361447647,-400.0,0.00018991,2]
[381829728,1756361447656,-400.0,0.00018991,2]
[381829729,1756361447665,-400.0,0.00018991,2]
[381829730,1756361447674,-400.0,0.00018991,2]
[381829731,1756361447684,-400.0,0.00018991,2]
[381829732,1756361447693,-400.0,0.00018991,2]
[381829733,1756361447702,-401.43200138,0.00018991,2]
[381829734,1756361447711,-400.0,0.00018991,2]
[381829735,1756361447721,-500.81199027,0.00018991,2]
[381829736,1756361447731,-500.71132063,0.00018991,2]
[381829737,1756361447740,-400.0,0.00018991,2]
[381829738,1756361447749,-400.0,0.00018991,2]
[381829739,1756361447758,-400.0,0.00018991,2]
[381829740,1756361447767,-500.82,0.00018991,2]
[381829741,1756361447778,-400.0,0.00018991,2]
[381829742,1756361447787,-400.0,0.00018991,2]
[381829743,1756361447796,-400.0,0.00018991,2]
[381829744,1756361447805,-400.0,0.00018991,2]
[381829745,1756361447815,-532.76,0.00018991,2]
[381829746,1756361447824,-400.0,0.00018991,2]
[381829747,1756361447833,-400.0,0.00018991,2]
[381829748,1756361447842,-402.97168363,0.00018991,2]
[381829749,1756361447852,-400.0,0.00018991,2]
[381829750,1756361448029,-400.0,0.00018991,2]
[381829751,1756361448039,-400.0,0.00018991,2]
[381829752,1756361448049,-400.0,0.00018991,2]
[381829753,1756361448058,-646.64,0.00018991,2]
[381829754,1756361448067,-400.0,0.00018991,2]
[381829755,1756361448077,-400.0,0.00018991,2]
[381829756,1756361448086,-400.0,0.00018991,2]
[381829757,1756361448095,-400.0,0.00018991,2]
[381829758,1756361448105,-400.0,0.00018991,2]
[381829759,1756361448114,-400.0,0.00018991,2]
[381829760,1756361448124,-400.0,0.00018991,2]
[381829761,1756361448133,-400.0,0.00018991,2]
[381829762,1756361448143,-400.0,0.00018991,2]
[381829763,1756361448153,-400.0,0.00018991,2]
[381829764,1756361448163,-400.0,0.00018991,2]
[381829765,1756361448172,-400.0,0.00018991,2]
[381829766,1756361448181,-549.27,0.00018991,2]
[381829767,1756361448191,-400.0,0.00018991,2]
[381829768,1756361448201,-401.96867079,0.00018991,2]
[381829769,1756361448210,-400.0,0.00018991,2]
[381829770,1756361448220,-400.0,0.00018991,2]
[381829771,1756361448229,-400.0,0.00018991,2]
[381829772,1756361448239,-400.0,0.00018991,2]
[381829773,1756361448249,-400.0,0.00018991,2]
[381829774,1756361448258,-400.0,0.00018991,2]
[381829775,1756361448268,-400.0,0.00018991,2]
[381829776,1756361448278,-400.0,0.00018991,2]
[381829777,1756361448287,-400.0,0.00018991,2]
[381829778,1756361448297,-415.65,0.00018991,2]
[381829779,1756361448306,-400.0,0.00018991,2]
[381829780,1756361448316,-400.0,0.00018991,2]
[381829781,1756361448325,-400.0,0.00018991,2]
[381829782,1756361448334,-401.94501325,0.00018991,2]
[381829783,1756361448344,-400.0,0.00018991,2]
[381829784,1756361448353,-400.0,0.00018991,2]
[381829785,1756361448363,-400.0,0.00018991,2]
[381829786,1756361448372,-400.0,0.00018991,2]
[381829787,1756361448381,-400.0,0.00018991,2]
[381829788,1756361448391,-400.0,0.00018991,2]
[381829789,1756361448400,-400.0,0.00018991,2]
[381829790,1756361448410,-489.38,0.00018991,2]
[381829791,1756361448419,-400.0,0.00018991,2]
[381829792,1756361448429,-400.0,0.00018991,2]
[381829793,1756361448438,-400.0,0.00018991,2]
[381829794,1756361448448,-400.0,0.00018991,2]
[381829795,1756361448458,-411.8305824,0.00018991,2]
[381829796,1756361448467,-606.4,0.00018991,2]
[381829797,1756361448477,-459.94,0.00018991,2]
[381829798,1756361448486,-400.0,0.00018991,2]
[381829799,1756361448497,-400.0,0.00018991,2]
[381829800,1756361448506,-542.99,0.00018991,2]
[381829801,1756361448516,-400.0,0.00018991,2]
[381829802,1756361448527,-400.0,0.00018991,2]
[381829803,1756361448536,-400.0,0.00018991,2]
[381829804,1756361448545,-400.0,0.00018991,2]
[381829805,1756361448555,-400.0,0.00018991,2]
[381829806,1756361448564,-488.62,0.00018991,2]
[381829807,1756361448574,-400.0,0.00018991,2]
[381829808,1756361448583,-400.0,0.00018991,2]
[381829809,1756361448593,-400.0,0.00018991,2]
[381829810,1756361448602,-458.7,0.00018991,2]
[381829811,1756361448612,-400.0,0.00018991,2]
[381829812,1756361448621,-400.0,0.00018991,2]
[381829813,1756361448631,-400.0,0.00018991,2]
[381829814,1756361448640,-400.0,0.00018991,2]
[381829815,1756361448649,-400.0,0.00018991,2]
[381829816,1756361448659,-400.0,0.00018991,2]
[381829817,1756361448668,-500.0,0.00018991,2]
[381829818,1756361448678,-400.0,0.00018991,2]
[381829819,1756361448687,-189.08,0.00018991,2]
[381829820,1756361448697,-400.0,0.00018991,2]
[381829821,1756361448706,-401.6832683,0.00018991,2]
[381829822,1756361448715,-400.0,0.00018991,2]
[381829823,1756361448724,-400.0,0.00018991,2]
[381829824,1756361448734,-400.0,0.00018991,2]
[381829825,1756361448743,-400.0,0.00018991,2]
[381829826,1756361448752,-400.0,0.00018991,2]
[381829827,1756361448761,-400.0,0.00018991,2]
[381829828,1756361448771,-400.0,0.00018991,2]
[381829829,1756361448780,-400.0,0.00018991,2]
[381829830,1756361448790,-400.0,0.00018991,2]
[381829831,1756361448799,-400.0,0.00018991,2]
[381829832,1756361448808,-400.0,0.00018991,2]
[381829833,1756361448818,-400.0,0.00018991,2]
[381829834,1756361448827,-400.0,0.00018991,2]
[381829835,1756361448836,-400.0,0.00018991,2]
[381829836,1756361448846,-400.0,0.00018991,2]
[381829837,1756361448855,-400.0,0.00018991,2]
[381829838,1756361448864,-400.0,0.00018991,2]
[381829839,1756361448874,-424.43,0.00018991,2]
[381829840,1756361448883,-400.0,0.00018991,2]
[381829841,1756361448893,-400.0,0.00018991,2]
[381829842,1756361448903,-225.27618735,0.00018991,2]
[381829843,1756361448912,-400.0,0.00018991,2]
[381829844,1756361448921,-400.0,0.00018991,2]
[381829845,1756361448931,-400.0,0.00018991,2]
[381829846,1756361448944,-400.0,0.00018991,2]
[381829847,1756361448954,-400.0,0.00018991,2]
[381829848,1756361448963,-314.93,0.00018991,2]
[381829849,1756361448973,-400.0,0.00018991,2]
[381829850,1756361448983,-400.0,0.00018991,2]
[381829851,1756361448997,-400.0,0.00018991,2]
[381829852,1756361449009,-400.00986224,0.00018991,2]
[381829853,1756361449019,-400.0,0.00018991,2]
[381829854,1756361449028,-400.0,0.00018991,2]
[381829855,1756361449038,-346.67,0.00018991,2]
[381829856,1756361449048,-400.0,0.00018991,2]
[381829857,1756361449057,-400.0,0.00018992,2]
[381829858,1756361449067,-400.0,0.00018992,2]
[381829859,1756361449077,-400.0,0.00018992,2]
[381829860,1756361449086,-400.0,0.00018992,2]
[381829861,1756361449095,-281.21,0.00018992,2]
[381829862,1756361449105,-400.0,0.00018992,2]
[381829863,1756361449114,-430.96809461,0.00018992,2]
[381829864,1756361449123,-400.0,0.00018992,2]
[381829865,1756361449133,-269.39,0.00018992,2]
[381829866,1756361449142,-400.0,0.00018992,2]
[381829867,1756361449153,-400.0,0.00018992,2]
[381829868,1756361449163,-400.0,0.00018992,2]
[381829869,1756361449172,-400.0,0.00018992,2]
[381829870,1756361449182,-400.0,0.00018992,2]
[381829871,1756361449191,-400.0,0.00018992,2]
[381829872,1756361449200,-345.38,0.00018992,2]
[381829873,1756361449210,-400.0,0.00018992,2]
[381829874,1756361449219,-265.13,0.00018992,2]
[381829875,1756361449229,-400.0,0.00018992,2]
[381829876,1756361449238,-400.0,0.00018992,2]
[381829877,1756361449247,-237.5,0.00018992,2]
[381829878,1756361449257,-445.57,0.00018992,2]
[381829879,1756361449266,-318.08,0.00018992,2]
[381829880,1756361449276,-400.0,0.00018992,2]
[381829881,1756361449286,-400.0,0.00018992,2]
[381829882,1756361449295,-189.87,0.00018992,2]
[381829883,1756361449305,-400.0,0.00018992,2]
[381829884,1756361449315,-154.92,0.00018992,2]
[381829885,1756361449324,-400.0,0.00018992,2]
[381829886,1756361449334,-533.43,0.00018992,2]
[381829887,1756361449344,-400.0,0.00018992,2]
[381829888,1756361449353,-400.0,0.00018992,2]
[381829889,1756361449363,-400.0,0.00018992,2]
[381829890,1756361449372,-400.0,0.00018992,2]
[381829891,1756361449381,-400.0,0.00018992,2]
[381829892,1756361449391,-332.44,0.00018992,2]
[381829893,1756361449400,-400.0,0.00018992,2]
[381829894,1756361449410,-332.64,0.00018992,2]
[381829895,1756361449420,-400.0,0.00018992,2]
[381829896,1756361449429,-400.0,0.00018992,2]
[381829897,1756361449439,-400.0,0.00018992,2]
[381829898,1756361449449,-478.64,0.00018992,2]
[381829899,1756361449458,-400.0,0.00018992,2]
[381829900,1756361449468,-392.63,0.00018992,2]
[381829901,1756361449477,-400.0,0.00018992,2]
[381829902,1756361449487,-400.0,0.00018992,2]
[381829903,1756361449496,-326.63,0.00018992,2]
[381829904,1756361449505,-198.8,0.00018992,2]
[381829905,1756361449515,-400.0,0.00018992,2]
[381829906,1756361449525,-400.0,0.00018992,2]
[381829907,1756361449535,-533.55,0.00018992,2]
[381829908,1756361449544,-400.0,0.00018992,2]
[381829909,1756361449553,-400.0,0.00018992,2]
[381829910,1756361449563,-257.61163292,0.00018992,2]
[381829911,1756361449572,-400.0,0.00018992,2]
[381829912,1756361449581,-400.0,0.00018992,2]
[381829913,1756361449591,-548.47,0.00018992,2]
[381829914,1756361449601,-408.62,0.00018992,2]
[381829915,1756361449610,-400.0,0.00018992,2]
[381829916,1756361449621,-287.47,0.00018992,2]
[381829917,1756361449630,-400.0,0.00018992,2]
[381829918,1756361449639,-187.22476452,0.00018992,2]
[381829919,1756361449648,-400.67009527,0.00018992,2]
[381829920,1756361449657,-410.52,0.00018992,2]
[381829921,1756361449667,-400.0,0.00018992,2]
[381829922,1756361449676,-453.5,0.00018992,2]
[381829923,1756361449685,-400.0,0.00018992,2]
[381829924,1756361449694,-400.0,0.00018992,2]
[381829925,1756361449703,-374.71,0.00018992,2]
[381829926,1756361449713,-400.0,0.00018992,2]
[381829927,1756361449722,-400.0,0.00018992,2]
[381829928,1756361449732,-265.22,0.00018992,2]
[381829929,1756361449741,-478.99,0.00018992,2]
[381829930,1756361449750,-182.32,0.00018992,2]
[381829931,1756361449759,-436.83,0.00018992,2]
[381829932,1756361449769,-396.77,0.00018992,2]
[381829933,1756361449779,-400.0,0.00018992,2]
[381829934,1756361449788,-400.0,0.00018992,2]
[381829935,1756361449798,-400.0,0.00018992,2]
[381829936,1756361449808,-400.0,0.00018992,2]
[381829937,1756361449818,-314.24,0.00018992,2]
[381829938,1756361449827,-400.0,0.00018992,2]
[381829939,1756361449837,-400.0,0.00018993,2]
[381829940,1756361449848,-400.0,0.00018993,2]
[381829941,1756361449857,-400.0,0.00018993,2]
[381829942,1756361449866,-400.0,0.00018993,2]
[381829943,1756361449875,-160.38885895,0.00018993,2]
[381829944,1756361449885,-170.63,0.00018993,2]
[381829945,1756361449894,-150.55,0.00018993,2]
[381829946,1756361449904,-209.12,0.00018993,2]
[381829947,1756361449914,-339.84,0.00018993,2]